Cogmind - Beta 16.1 @@@ ROGUE MODE // 2026.03.05 @ 04:08:49 Player: Rocket Result: Self-destructed Performance ------------- Evolutions (2) 1000 Regions Visited (5) 1000 Robots Destroyed (28) 140 Value Destroyed (498) 498 Prototype IDs (0) 0 Alien Tech Used (0) 0 Bonus (0) 0 TOTAL SCORE: 2638 Bonus ------- None Cogmind --------- Core Integrity 550/550 Matter 268/300 Energy 250/250 System Corruption 0% Temperature Cool (0) Movement Walking (125) Location -8/Materials Parts ------- > --- POWER (1) -------- Ion Engine > --- PROPULSION (3) --- Carbon-fiber Leg Titanium Leg > --- UTILITY (4) ------ Large Storage Unit Improved Targeting Computer Core Analyzer Improved Propulsion Shielding > --- WEAPON (3) ------- EM Pulse Gun Small Laser Light Assault Rifle > --- INVENTORY (15) --- Ion Engine Wheel Compact Wheel Medium Matter Pod (100) Medium Matter Pod (100) Seismic Detector ECM Suite Hardlight Generator Hacking Suite Tractor Beam Grenade Launcher Grenade Launcher Grenade Launcher Rocket Launcher Mining Claw Peak State ------------ > --- POWER ------------ Ion Engine > --- PROPULSION ------- Carbon-fiber Leg Titanium Leg > --- UTILITY ---------- Large Storage Unit Improved Targeting Computer Core Analyzer Improved Propulsion Shielding > --- WEAPON ----------- EM Pulse Gun Small Laser Light Assault Rifle > --- INVENTORY -------- Ion Engine Wheel Compact Wheel Medium Matter Pod Medium Matter Pod Seismic Detector ECM Suite Hardlight Generator Hacking Suite Tractor Beam Grenade Launcher Grenade Launcher Grenade Launcher Rocket Launcher Mining Claw [Rating: 22] Favorites ----------- Power Ion Engine Engine Ion Engine Propulsion Titanium Leg Leg Titanium Leg Wheel Wheel Utility Large Storage Unit Device Seismic Detector Storage Large Storage Unit Processor Improved Targeting Computer Protection Improved Propulsion Shielding Weapon EM Pulse Gun Energy Gun EM Pulse Gun Ballistic Gun Light Assault Rifle Launcher Grenade Launcher Build | -11 -10 -10 -10 -9 -8 ------- Run | Yrd Mat Min Exi Min Mat Slots Evolved 4 | . . . . . 4 Power . | . . . . . . Propulsion 1 | . . . . . 1 Utility 2 | . . . . . 2 Weapon 1 | . . . . . 1 Parts Attached 21 | 8 7 2 . 1 3 Power 2 | 1 1 . . . . Engine 2 | 1 1 . . . . Core . | . . . . . . Reactor . | . . . . . . Propulsion 5 | 2 1 2 . . . Treads . | . . . . . . Leg 2 | . . 2 . . . Wheel 3 | 2 1 . . . . Hover . | . . . . . . Flight . | . . . . . . Utility 7 | 2 3 . . . 2 Device 2 | 1 1 . . . . Storage 2 | 1 1 . . . . Processor 2 | . 1 . . . 1 Hackware . | . . . . . . Protection 1 | . . . . . 1 Artifact . | . . . . . . Weapon 7 | 3 2 . . 1 1 Energy Gun 3 | 1 1 . . . 1 Energy Cannon . | . . . . . . Ballistic Gun 2 | 2 . . . . . Ballistic Cannon . | . . . . . . Launcher 2 | . 1 . . 1 . Special Weapon . | . . . . . . Impact Weapon . | . . . . . . Slashing Weapon . | . . . . . . Piercing Weapon . | . . . . . . Special Melee Weapon . | . . . . . . Unidentified Prototypes . | . . . . . . Parts Lost 1 | . . . . 1 . Power . | . . . . . . Propulsion . | . . . . . . Utility . | . . . . . . Weapon 1 | . . . . 1 . Highest Loss Streak 1 | . . . . 1 . To Critical Strikes . | . . . . . . Average Backups 13 | 2 12 15 15 14 14 Power . | . 1 1 1 1 1 Propulsion 1 | 1 1 1 2 2 2 Utility 5 | . 5 6 6 6 6 Weapon 4 | . 4 6 6 5 5 Tool/Special . | . . . . . . Unused Backups 14 | . 4 . . . 10 Power 1 | . . . . . 1 Propulsion 2 | . 2 . . . . Utility 6 | . 1 . . . 5 Weapon 5 | . 1 . . . 4 Tool/Special . | . . . . . . Average Slot Usage (%) 98 | . 100 100 100 100 77 Engine 13 | . 14 14 14 14 9 Leg 17 | . . 26 28 28 18 Wheel 9 | . 28 1 . . . Device 4 | . 12 . . . . Storage 13 | . 14 14 14 14 9 Processor 9 | . 1 14 14 14 13 Energy Gun 20 | . 11 28 28 26 12 Ballistic Gun 6 | . 16 . . . 9 Peak Build Rating 22 | 7 9 13 13 13 22 Average Rating 11 | 5 7 12 13 12 18 On Entrance 9 | . 7 9 13 13 13 Avg Prop Armor Cover (%) . | . . . . . . Naked Turns . | . . . . . . Heaviest Build 31 | 14 31 29 29 30 31 Greatest Support 32 | 26 26 32 32 32 32 Greatest Overweight (x) 1 | . 1 1 . . . Average Overweight (x) . | . . . . . . Largest Inventory Capacity 15 | 8 15 15 15 15 15 Average Capacity 14 | 6 14 15 15 15 15 Most Carried 15 | 4 15 15 15 15 15 Average Carried 13 | 2 12 14 15 14 14 Final Capacity 15 | 8 15 15 15 15 15 Final Carried 15 | 4 15 15 15 15 15 Class Distribution -------------------- 96% | Mutant 3% | Gunner Dominant Class ---------------- Mutant | -10/Materials Mutant | -10/Mines Mutant | -10/Exiles Mutant | -9/Mines Gunner | -8/Materials Resources | -11 -10 -10 -10 -9 -8 ----------- Run | Yrd Mat Min Exi Min Mat Matter Collected 840 | 187 194 275 . 184 . Remotely . | . . . . . . Salvage Created 594 | 45 311 144 . 94 . Parts 48 | 6 24 11 . 7 . Haulers Intercepted . | . . . . . . Recyclers Shooed 3 | 2 1 . . . . Parts Field Recycled . | . . . . . . Retrieved Matter . | . . . . . . Parts Self-Destructed . | . . . . . . Prevented . | . . . . . . Parts Restored . | . . . . . . Kills | -11 -10 -10 -10 -9 -8 ------- Run | Yrd Mat Min Exi Min Mat Combat Hostiles Destroyed 21 | . 9 5 . 7 . Guns 10 | . 7 3 . . . AOE 11 | . 2 2 . 7 . Classes Destroyed 6 | 1 5 . . . . Worker 1 | . 1 . . . . Tunneler 3 | 2 . 1 . . . Operator 1 | . 1 . . . . Watcher 2 | . 2 . . . . Swarmer 13 | . 6 3 . 4 . Grunt 8 | . 3 2 . 3 . Best Kill Streak 4 | 2 3 4 . 4 . Combat Bots Only 4 | . 3 3 . 4 . Max Kills in Single Turn 2 | 1 2 1 . 2 . Gunslinging . | . . . . . . Exploded 2 | . 2 1 . 2 . Melee . | . . . . . . Uniques/NPCs Destroyed . | . . . . . . Combat | -11 -10 -10 -10 -9 -8 -------- Run | Yrd Mat Min Exi Min Mat Hostile Shots Fired 90 | . 53 24 . 13 . Missed 27 | . 17 7 . 3 . Hits 63 | . 36 17 . 10 . Projectile 63 | . 36 17 . 10 . Critical Strikes 1 | . 1 . . . . Damage Taken 674 | . 348 214 . 112 . Core 190 | . 74 80 . 36 . Absorbed by Shields . | . . . . . . Core Remaining (%) 62 | 100 . . . 24 . Volleys Fired 67 | 8 36 15 . 6 2 Largest 3 | 2 2 2 . 2 3 Hottest 100 | 60 80 80 . 70 100 Shots Fired 125 | 16 67 30 . 7 5 Gun 118 | 16 66 30 . 1 5 Cannon . | . . . . . . Launcher 7 | . 1 . . 6 . Special . | . . . . . . Kinetic 67 | 11 54 . . . 2 Thermal 1 | . . . . . 1 Explosive 7 | . 1 . . 6 . Electromagnetic 50 | 5 12 30 . 1 2 Robot Hit Streak 12 | 5 12 4 . 1 2 Robot Miss Streak 8 | 1 4 8 . 2 3 Penetration Max . | . . . . . . Secondary Targets 2 | . 1 1 . . . Max Gunslinging Chain 1 | . 1 1 . . . Shots Hit Robots 66 | 11 37 13 . 3 2 Core Hits 38 | 2 18 6 . 12 . Critical Kills . | . . . . . . Critical Parts Destroyed . | . . . . . . Critical Strikes 1 | . 1 . . . . Corrupt 1 | . 1 . . . . Melee Attacks . | . . . . . . Impact . | . . . . . . Slashing . | . . . . . . Piercing . | . . . . . . Sneak Attacks . | . . . . . . Combat Hostiles . | . . . . . . Follow-up Attacks . | . . . . . . Damage Inflicted 1359 | 112 538 303 . 389 17 Guns 697 | 112 405 163 . . 17 Cannons . | . . . . . . Explosions 662 | . 133 140 . 389 . Melee . | . . . . . . Ramming . | . . . . . . Kinetic 428 | 71 351 . . . 6 Thermal 205 | . 54 140 . . 11 Explosive 468 | . 79 . . 389 . Electromagnetic 258 | 41 54 163 . . . Impact . | . . . . . . Slashing . | . . . . . . Piercing . | . . . . . . Highest Corruption . | . . . . . . Average Corruption . | . . . . . . Corruption Purged . | . . . . . . Corruption Blocked . | . . . . . . Overload Shots . | . . . . . . Overflow Damage 15 | . . 15 . . . Projectiles . | . . . . . . Explosions 15 | . . 15 . . . Melee . | . . . . . . Knockbacks . | . . . . . . Impact . | . . . . . . Kinetic . | . . . . . . Secondary . | . . . . . . Self-Inflicted Damage 60 | . . 58 . 2 . Shots 3 | . . 2 . 1 . Rammed . | . . . . . . Targets Rammed . | . . . . . . Kicked . | . . . . . . Crushed . | . . . . . . Highest Temperature 138 | 20 36 138 . 10 21 Average Temperature 43 | 10 12 67 . 6 10 Received Heat Transfer 153 | . 87 30 . 36 . Siege Activations . | . . . . . . Martial Activations . | . . . . . . Shielding Activations . | . . . . . . Robots Disrupted . | . . . . . . Combat Hostiles . | . . . . . . Robots Corrupted . | . . . . . . Combat Hostiles . | . . . . . . Parts Fried . | . . . . . . Impact Corruptions . | . . . . . . Robots Melted . | . . . . . . Combat Hostiles . | . . . . . . Parts Melted . | . . . . . . Heat Transferred 275 | . 50 200 . . 25 Parts Sabotaged . | . . . . . . Parts Stolen . | . . . . . . Parts Stripped . | . . . . . . Power Chain Reactions 4 | . 1 3 . . . Alert | -11 -10 -10 -10 -9 -8 ------- Run | Yrd Mat Min Exi Min Mat Maximum Alert Level . | . . . . . . Low Security (%) 100 | 100 100 100 . 100 100 Level 1 . | . . . . . . Level 2 . | . . . . . . Level 3 . | . . . . . . Level 4 . | . . . . . . Level 5 . | . . . . . . High Security . | . . . . . . Max Security . | . . . . . . Peak Influence 134 | 10 78 86 . 134 48 Initial 48 | . . 21 . . 48 Average 24 | . 34 21 . 21 28 Influence Increases 625 | 10 277 140 . 190 8 Destroy 0b10 Robot/C 420 | . 180 100 . 140 . Destroy 0b10 Robot/NC 35 | 10 20 5 . . . Destroy Leader 84 | . 44 20 . 20 . Successful Hack 15 | . 7 . . . 8 Destroy Structure 56 | . 11 15 . 30 . Partial Spotted 15 | . 15 . . . . Influence Decreases 609 | 10 222 139 56 64 118 Entered New Map 168 | . . 34 56 . 78 Time Decay 431 | 10 222 105 . 54 40 Lost Part 10 | . . . . 10 . Squads Dispatched 3 | . 1 1 . . 1 Investigation 1 | . . 1 . . . Extermination . | . . . . . . Reinforcement 2 | . 1 . . . 1 Assault . | . . . . . . Garrison . | . . . . . . Intercept . | . . . . . . Searches Triggered . | . . . . . . Construction Impeded 1 | . . . . . 1 Haulers Reinforced . | . . . . . . Active Scanning Responses . | . . . . . . Cargo Convoy Interrupts . | . . . . . . Stealth | -11 -10 -10 -10 -9 -8 --------- Run | Yrd Mat Min Exi Min Mat Distress Signals 1 | . 1 . . . . Communications Jammed . | . . . . . . Distress Signals . | . . . . . . Times Spotted 29 | . 17 5 . 7 . Peak Tracking Total 5 | . 5 3 . 4 . Tactical Retreats . | . . . . . . Traps | -11 -10 -10 -10 -9 -8 ------- Run | Yrd Mat Min Exi Min Mat Traps Triggered . | . . . . . . Indirectly . | . . . . . . Trap Hack Attempts . | . . . . . . Triggered . | . . . . . . Disarmed . | . . . . . . Reprogrammed . | . . . . . . Reused . | . . . . . . Traps Extracted . | . . . . . . Installed . | . . . . . . Triggered . | . . . . . . Machines | -11 -10 -10 -10 -9 -8 ---------- Run | Yrd Mat Min Exi Min Mat Machines Disabled . | . . . . . . Max in Single Turn . | . . . . . . Machines Repaired . | . . . . . . Machines Dismantled . | . . . . . . Machines Sabotaged . | . . . . . . Overloaded Fab Kills . | . . . . . . Hacking | -11 -10 -10 -10 -9 -8 --------- Run | Yrd Mat Min Exi Min Mat Machines Accessed 5 | . 3 1 . . 1 Terminals 4 | . 3 . . . 1 Fabricators . | . . . . . . Repair Stations . | . . . . . . Recycling Units . | . . . . . . Scanalyzers . | . . . . . . Garrison Access . | . . . . . . Total Hacks 9 | . 4 1 . . 4 Successful 4 | . 2 1 . . 1 Failed 4 | . 1 . . . 3 Catastrophic 1 | . . . . . 1 Database Lockouts 1 | . 1 . . . . Manual 7 | . 3 . . . 4 Terminals 8 | . 4 . . . 4 Fabricators . | . . . . . . Repair Stations . | . . . . . . Recycling Units . | . . . . . . Scanalyzers . | . . . . . . Garrison Access . | . . . . . . Terminal Hacks 4 | . 2 1 . . 1 Part Schematic 1 | . 1 . . . . Open Door 1 | . . 1 . . . Branch Access Points 2 | . 1 . . . 1 Fabricator Hacks . | . . . . . . Repair Station Hacks . | . . . . . . Recycling Unit Hacks . | . . . . . . Scanalyzer . | . . . . . . Garrison Access Hacks . | . . . . . . Unauthorized Hacks . | . . . . . . Terminals . | . . . . . . Fabricators . | . . . . . . Repair Stations . | . . . . . . Recycling Units . | . . . . . . Scanalyzers . | . . . . . . Garrison Access . | . . . . . . Data Cores Recovered . | . . . . . . Used . | . . . . . . Hacking Detections 1 | . . . . . 1 Full Trace Events . | . . . . . . Feedback Events . | . . . . . . Feedback Blocked . | . . . . . . Robot Schematics Acquired . | . . . . . . Robots Built . | . . . . . . Authchips . | . . . . . . Time . | . . . . . . Total Robot Build Rating . | . . . . . . Part Schematics Acquired 1 | . 1 . . . . Parts Built . | . . . . . . Authchips . | . . . . . . Time . | . . . . . . Total Part Build Rating . | . . . . . . Part Studies Acquired . | . . . . . . Parts Repaired . | . . . . . . Time . | . . . . . . Parts Recycled . | . . . . . . Recycled Matter . | . . . . . . Retrieved Matter . | . . . . . . Retrieved Components . | . . . . . . Parts Scanalyzed . | . . . . . . Part Schematics Acquired . | . . . . . . Parts Damaged . | . . . . . . Bothacking | -11 -10 -10 -10 -9 -8 ------------ Run | Yrd Mat Min Exi Min Mat Used RIF Installer . | . . . . . . Robots Hacked . | . . . . . . Non-combat . | . . . . . . Combat . | . . . . . . Robot Hacks Applied . | . . . . . . Relay Couplers Released . | . . . . . . Fabnet Peak Effective % . | . . . . . . Robots Rewired . | . . . . . . Allies Hacked . | . . . . . . Hacks Repelled . | . . . . . . Allies | -11 -10 -10 -10 -9 -8 -------- Run | Yrd Mat Min Exi Min Mat Total Allies . | . . . . . . Largest Group . | . . . . . . Highest-Rated Group . | . . . . . . Highest-Rated Ally . | . . . . . . Total Orders . | . . . . . . Ally Attacks . | . . . . . . Total Damage . | . . . . . . Kills . | . . . . . . Allies Corrupted . | . . . . . . Allies Melted . | . . . . . . Intel | -11 -10 -10 -10 -9 -8 ------- Run | Yrd Mat Min Exi Min Mat Active Infowar (turns) 460 | 14 446 . . . . Seismic 460 | 14 446 . . . . Robot Analysis Total . | . . . . . . Derelict Logs Recovered 2 | . . 2 . . . Drone Launches . | . . . . . . Drone Recoveries . | . . . . . . Exploration | -11 -10 -10 -10 -9 -8 ------------- Run | Yrd Mat Min Exi Min Mat Turns Passed 1611 | 122 515 372 59 445 98 Spaces Moved 1149 | 94 359 254 48 325 69 Core 5 | 5 . . . . . Treads . | . . . . . . Legs 688 | . . 246 48 325 69 Wheels 456 | 89 359 8 . . . Hover . | . . . . . . Flight . | . . . . . . Fastest Speed 50 | 50 90 105 125 125 125 Average Speed 115 | 87 104 124 125 125 125 Slowest Speed 200 | 90 105 200 125 125 125 Overloaded Moves . | . . . . . . Propulsion Burnouts . | . . . . . . Robots Hopped . | . . . . . . Potential Cave-ins . | . . . . . . Cave-ins Triggered . | . . . . . . Exploration Rate (%) 29 | 3 57 37 10 62 6 Regions Visited 5 Branch Regions 3 Pre-discovered Areas 1 | . . 1 . . . Known Exits Taken 1 | . 1 . . . . Unknown Exits Taken 4 | 1 . 1 1 1 . Scrap Searched 5 | . . 3 . 2 . Spaces Dug . | . . . . . . Terrain Destroyed 71 | . 11 17 . 43 . Melee . | . . . . . . Projectile . | . . . . . . AOE 71 | . 11 17 . 43 . Terrain Rammed . | . . . . . . Walls Destroyed . | . . . . . . Machines Disabled . | . . . . . . Actions | -11 -10 -10 -10 -9 -8 --------- Run | Yrd Mat Min Exi Min Mat Total 1312 | 115 437 281 47 357 75 Wait 33 | . 11 5 . 17 . Move 1144 | 93 358 253 47 324 69 Hop . | . . . . . . Pick Up 24 | 4 14 2 . 3 1 Fast Attach 14 | 8 2 2 . . 2 Attach 2 | . . . . 1 1 Detach . | . . . . . . Swap 12 | 1 7 . . 4 . Drop 16 | 1 9 4 . 2 . Fire 67 | 8 36 15 . 6 2 Melee . | . . . . . . Ram . | . . . . . . Kick . | . . . . . . Crush . | . . . . . . Escape Stasis . | . . . . . . Rewire . | . . . . . . Trap . | . . . . . . Miscellaneous . | . . . . . . Route ------- -11/Scrapyard -10/Materials (discovered 2 exits: [*Mat] / *Min) -10/Mines (discovered 2 exits: [*Exi] / Sub) -10/Exiles -9/Mines -8/Materials History --------- Turn | Location | Event 10 | -11/Scrapyard | Discovered new exit (range 15) 123 | -11/Scrapyard | Entered Materials 316 | -10/Materials | Build established: Mutant 339 | -10/Materials | Identified exit to Mines 461 | -10/Materials | Central database locked down 559 | -10/Materials | Discovered new exit (range 14) 638 | -10/Materials | Entered Mines 645 | -10/Mines | Met a Derelict shopkeep closing up shop 854 | -10/Mines | Deemed a non-threat by the Exiles lab entrance 854 | -10/Mines | Discovered new exit (range 5) 893 | -10/Mines | Identified exit to Subcaves 940 | -10/Mines | Core integrity fell below 50% 1010 | -10/Mines | Entered Exiles 1042 | -10/Exiles | Met 8R-AWN 1050 | -10/Exiles | Discovered new exit (range 14) 1069 | -10/Exiles | Entered Mines 1119 | -9/Mines | Met a Derelict bent on vengeance 1261 | -9/Mines | Received a Rocket Launcher from a helpful Derelict 1484 | -9/Mines | Discovered new exit (range 9) 1514 | -9/Mines | Entered Materials 1514 | -8/Materials | Evolved 4 slots: Propulsion x1, Utility x2, Weapon x1 1612 | -8/Materials | Self-destructed Last Messages --------------- 01511_ Connecting with Terminal... 01511_ Current location identified: Mines 01513_ Acquired 4 matter. 01514_ The unstable cave ceiling collapses. PARAMETERS=PROPULSION+1,UTILITY+2,WEAPON+1 LOCATION=UNKNOWN GOAL=ESCAPE 01515_ T-07 Excavator is excavating. 01536_ Acquired Imp. Propulsion Shielding. 01551_ U-05 Engineer repairs door. 01559_ Acquired Core Analyzer. 01581_ Acquired Hardlight Generator. 01589_ K-01 Serf collects debris. 01600_ ALERT: Construction progress impeded, dispatching reinforcements to local area. 01604_ K-01 Serf collects debris. 01612_ Connecting with Terminal... 01612_ Current location identified: Materials >>Access(Branch) No branch access points found. Map ----- +----------------------------------------------------+ | ?????????????????????????????????????????????????? | | ?????????????????????????????????????????????????? | | ??????????????????????########???????????????????? | | ??????????????????????# #???????????????????? | | ??????????????????????# #???????????????????? | | ??????????????????????# #########???????????? | | ??????????????????????# ##!!==!!#???????????? | | ??????????????????????# ## !==!!#???????????? | | ??????????????????????# ## #???????????? | | ??????????????????????# ## #####???????????? | | ??????????????????????# + #???????????????? | | ??????????????????????# # #???????????????? | | ??????????????????????# + #???????????????? | | ??????????????????????# # #???????????????? | | ??????????????????????######## ################# | | ??????????????????????# # | | ??????????????????????# # | | ??????????????????????# / | | ??????????????????????# # ########## ##### | | ??????????????????????# # #???????# ##???? | | ??????????????????????# ?### ###???????##?????? | | ??????????????????????# ???# #????????????????? | | ???????????????? ????######??# #????????????????? | | ??????????????? # #??# #????????????????? | | ???????????????? + " #### #????????????????? | | ??????????????????????# T@ + #????????????????? | | ??????????????????????# " ######????????????????? | | ??????????????????????# #?????????????????????? | | ??????????????????????######?????????????????????? | | ?????????????????????????????????????????????????? | | | | | | | | | | | | | | | | | | | | | | | | | | | | | | | | | | | | | | | | | +----------------------------------------------------+ Best States ------------- Heat Dissipation 31 Energy Generation 10 Energy Capacity 250 Matter Stores 300 Matter Capacity 300 Sight Range 16 Terrain Scan Density 10 Propulsion Shielding 66 Evasion (%) 55 Targeting Accuracy 6 Core Analysis 6 Item Schematics ----------------- Cargo Storage Unit | -10/Materials | Hacked Robot Schematics ------------------ None Fabricated ------------ Nothing Repaired ---------- Nothing Studied --------- None Alien Tech Used ----------------- None Achievements -------------- None Challenges ------------ None Game ------ Seed SixParticleRay Manual? 0 Play Time 00:11:34 Cumulative 127.0 hours Start 2026.03.04 @ 04:16:12 End 2026.03.05 @ 04:08:49 Sessions 2 Manual Loads 0 Difficulty Rogue Special Mode None Game No. 179 Rogue 179 Adventurer 0 Explorer 0 Win Type - Total 1 Types 1/0/0/0/0/0/0/0/0/0 Lore% 34 Gallery% 48 Achievement% 37 Wizard Run 0 Options --------- Layout 1 ASCII 0 Keyboard 0 Movement Mouse Keybinds 0 Fullscreen 2 Font 24/Smallcaps Map View 25x17 Zoom Use 48% Tactical HUD 1 Map Filters NONE Filters NONE Steam 1 RUN: eefb2e31-7dd7-4f27-b464-d8636b0a1976